[Event "Indian Blitz Championship 2023"]
[Site "Nashik"]
[Date "2024.03.07"]
[Round "8.7"]
[White "Aronyak Ghosh"]
[Black "Manish Anto Cristiano F"]
[Result "1-0"]
[ECO "A11"]
[WhiteElo "2517"]
[BlackElo "2286"]
[Annotator "TA"]
[PlyCount "91"]
[EventDate "2024.03.07"]
[EventType "blitz"]
[EventCountry "IND"]
[SourceTitle "playchess.com"]
[Source "ChessBase"]
[SourceQuality "1"]
[TimeControl "180+2"]

{[%evp 9,91,11,18,11,18,31,33,31,37,31,28,20,45,47,50,54,48,32,70,68,81,81,90,80,87,62,87,65,76,75,79,77,200,196,214,223,256,251,252,245,258,258,443,385,433,458,449,432,502,508,557,559,647,642,710,733,725,723,859,850,966,962,959,929,870,752,1025,1045,1048,990,1056,1054,2032,1637,6404,6404,6078,6064,5908,5908,5046,5046,1793,1750]} 1. Nf3 {[%emt 0:00:02]} Nf6 {[%emt 0:00:01]} 2. c4 {[%emt 0:00:02]} c6 {[%emt 0:00:01]} 3. e3 {[%emt 0:00:03]} d5 {[%emt 0:00:01]} 4. Qc2 {[%emt 0:00:01]} e6 {[%emt 0:00:14]} 5. b3 {[%emt 0:00:03]} Bd6 {[%emt 0:00:01]} 6. Bb2 {[%emt 0:00:02]} Nbd7 {[%emt 0:00:03]} 7. d4 {[%emt 0:00:01]} Ne4 {[%emt 0:00:06]} 8. Be2 {[%emt 0:00:09] Weiß steht etwas besser.} O-O {[%emt 0:00:04]} 9. O-O {[%emt 0:00:04]} f5 {[%emt 0:00:01]} 10. Ba3 {[%emt 0:00:03]} Qf6 {[%emt 0:00:09]} 11. Bxd6 {[%emt 0:00:10]} Nxd6 {[%emt 0:00:02]} 12. Nbd2 {[%emt 0:00:03][%cal Bb1d2,Bd2f3,Bf3e5][%mdl 32]} g5 {[%emt 0:00:04]} 13. Ne1 {[%emt 0:00:10]} Qg7 {[%emt 0:00:32]} 14. Nd3 {[%emt 0:00:08]} Nf6 {[%emt 0:00:09]} 15. Nf3 {[%emt 0:00:13]} Bd7 {[%emt 0:00:08]} 16. Nfe5 {[%emt 0:00:02]} Be8 {[%emt 0:00:02]} 17. f3 {[%emt 0:00:09][%cal Bf2f3,Bf3f4][%mdl 32] Weiß steht aktiver.} Nd7 {[%emt 0:00:09]} 18. Rad1 {[%emt 0:00:09]} Nxe5 {[%emt 0:01:51]} 19. dxe5 {[%emt 0:00:03]} Nc8 {[%emt 0:00:00]} 20. f4 {[%emt 0:00:04]} Ne7 {[%emt 0:00:00] Das kostet Schwarz die Partie.} (20... Nb6 $16) 21. Nc5 $18 {[%emt 0:00:02][%csl LRb7,LRe6]} Qh6 {[%emt 0:00:00]} 22. Nxb7 {[%emt 0:00:17]} Ng6 {[%emt 0:00:00][%cal Rg5f4]} 23. Nc5 {[%emt 0:00:08]} Bf7 {[%emt 0:00:00]} 24. g3 {[%emt 0:00:04]} gxf4 {[%emt 0:00:00]} 25. exf4 {[%emt 0:00:04][%cal Be3f4,Bf4e5][%mdl 32]} Nxe5 $2 {[%emt 0:00:00] [#]} (25... Ne7 {kämpft weiter.} 26. Rd3 a5) 26. cxd5 {[%emt 0:00:14]} cxd5 {[%emt 0:00:00][%cal Of8c8]} 27. fxe5 {[%emt 0:00:08] Weiß steht klar auf Gewinn.} Qe3+ {[%emt 0:00:00]} 28. Kh1 {[%emt 0:00:06]} Rac8 {[%emt 0:00:00]} 29. b4 {[%emt 0:00:02]} Bg6 {[%emt 0:00:00]} 30. Qd2 {[%emt 0:00:06]} Qxe5 {[%emt 0:00:00]} 31. Nd7 {[%emt 0:00:05]} Qd6 {[%emt 0:00:00]} 32. Nxf8 {[%emt 0:00:02]} Rxf8 {[%emt 0:00:00]} 33. Bf3 {[%emt 0:00:02]} f4 {[%emt 0:00:00]} 34. Bg2 {[%emt 0:00:12]} fxg3 {[%emt 0:00:01]} 35. Rxf8+ {[%emt 0:00:01]} Kxf8 {[%emt 0:00:01]} 36. Rf1+ {[%emt 0:00:03]} Kg8 {[%emt 0:00:07]} 37. Qf4 {[%emt 0:00:05]} e5 {[%emt 0:00:09]} 38. Qf6 {[%emt 0:00:05]} Qxf6 {[%emt 0:00:05]} 39. Rxf6 {[%emt 0:00:01]} d4 {[%emt 0:00:09][%cal Bd5d4,Bd4d3][%mdl 32]} 40. Re6 {[%emt 0:00:06]} d3 {[%emt 0:00:07]} 41. Rxe5 {[%emt 0:00:03]} gxh2 {[%emt 0:00:02]} 42. Kxh2 {[%emt 0:00:04]} Kf7 {[%emt 0:00:01]} 43. Bf1 {[%emt 0:00:10]} Kf6 {[%emt 0:00:03]} 44. Rd5 {[%emt 0:00:02]} Ke6 {[%emt 0:00:02]} 45. Rd8 {[%emt 0:00:02]} Ke7 {[%emt 0:00:01]} 46. Rd4 {[%emt 0:00:01] Gewichteter Fehlerwert: Weiß=0.04 (makellos) /Schwarz=0.32.  Fehler:       	---       	Schwarz=2     Ungenau:       	---       	Schwarz=1     OK:         	Weiß=13    	Schwarz=5     Bester:       	Weiß=3     	---} 1-0

[Event "Indian Blitz Championship 2023"]
[Site "Nashik"]
[Date "2024.03.07"]
[Round "8.8"]
[White "Laxman, R.R."]
[Black "Dinesh Rajan M"]
[Result "1-0"]
[ECO "E17"]
[WhiteElo "2331"]
[BlackElo "1948"]
[Annotator "TA"]
[PlyCount "181"]
[EventDate "2024.03.07"]
[EventType "blitz"]
[EventCountry "IND"]
[SourceTitle "playchess.com"]
[Source "ChessBase"]
[SourceQuality "1"]
[TimeControl "180+2"]

{[%evp 18,180,20,4,12,16,14,14,45,41,45,64,48,63,111,92,156,70,80,75,246,248,239,242,241,230,229,229,232,231,237,234,245,197,211,192,211,176,163,138,132,127,120,99,104,110,111,47,97,89,109,118,145,145,145,137,152,137,137,137,170,145,171,162,206,206,206,177,177,177,177,177,177,177,188,206,191,177,177,177,177,177,177,169,169,146,146,146,146,146,146,0,146,53,60,118,118,0,118,118,118,8,118,118,118,8,8,8,8,8,8,0,7,0,8,0,118,0,118,118,118,8,3187,118,1386,1139,825,118,118,118,118,53,29996,29988,29988,29989,29989,29990,29990,29991,29991,29992,29992,29991,29991,29992,29992,29993,29994,29995,29995,29996,29996,29996,29997,29996,29997,29997,29997,29997,29997,29998,29998,29999,29999]} 1. d4 {[%emt 0:00:02]} d5 {[%emt 0:00:01]} 2. Nf3 {[%emt 0:00:02]} Nf6 {[%emt 0:00:01]} 3. c4 {[%emt 0:00:01]} e6 {[%emt 0:00:01]} 4. g3 {[%emt 0:00:01]} Be7 {[%emt 0:00:04]} 5. Bg2 {[%emt 0:00:01]} O-O {[%emt 0:00:02]} 6. O-O {[%emt 0:00:02]} b6 {[%emt 0:00:01]} 7. cxd5 {[%emt 0:00:02]} exd5 {[%emt 0:00:01]} 8. Nc3 {[%emt 0:00:02]} Bb7 {[%emt 0:00:00]} 9. b3 {[%emt 0:00:07]} Nbd7 {[%emt 0:00:02]} 10. Bb2 {[%emt 0:00:01]} Rc8 {[%emt 0:00:00]} 11. Rc1 {[%emt 0:00:05]} Ne4 {[%emt 0:00:03]} 12. Nb5 {[%emt 0:00:08][%cal Oa2a3]} a6 {[%emt 0:00:03] Die Stellung ist ausgeglichen.} 13. Na7 {[%emt 0:00:06]} Ra8 {[%emt 0:00:03]} 14. Nc6 {[%emt 0:00:01]} Bxc6 {[%emt 0:00:08]} 15. Rxc6 {[%emt 0:00:02]} Nb8 {[%emt 0:00:02]} (15... Bd6 $14) 16. Rc2 {[%emt 0:00:02]} Bf6 {[%emt 0:00:01]} (16... Nf6 $142) 17. Nd2 {[%emt 0:00:11]} (17. Ne5 $16) 17... Nxd2 $14 {[%emt 0:00:04]} 18. Qxd2 {[%emt 0:00:01]} c5 $2 {[%emt 0:00:02]} 19. dxc5 $18 {[%emt 0:00:04] c6 wäre nun fies.} Bxb2 {[%emt 0:00:03]} 20. Rxb2 {[%emt 0:00:02]} bxc5 {[%emt 0:00:02]} 21. Qxd5 {[%emt 0:00:06]} Qxd5 {[%emt 0:00:38]} 22. Bxd5 {[%emt 0:00:02]} Ra7 {[%emt 0:00:00]} 23. Rc1 {[%emt 0:00:04]} Rc7 {[%emt 0:00:03]} 24. Rbc2 {[%emt 0:00:02]} Rfc8 {[%emt 0:00:03]} 25. e4 {[%emt 0:00:07]} Nd7 {[%emt 0:00:06]} 26. b4 {[%emt 0:00:02]} Kf8 {[%emt 0:00:06]} 27. a4 {[%emt 0:00:09]} Ke7 {[%emt 0:00:02]} 28. a5 {[%emt 0:00:03]} f6 {[%emt 0:00:07]} 29. f4 {[%emt 0:00:08] Weiß steht aktiver.} Kd6 {[%emt 0:00:03]} 30. bxc5+ {[%emt 0:00:10]} Rxc5 {[%emt 0:00:06]} 31. Rxc5 {[%emt 0:00:03]} Rxc5 $16 {[%emt 0:00:09][%mdl 4096] Endspiel. KRB-KRN} 32. Rd1 {[%emt 0:00:14]} (32. Ra1 $1 $16) 32... Ke7 {[%emt 0:00:15]} (32... Rxa5 $14 33. Bg8+ Ke7) 33. Ra1 {[%emt 0:00:07]} Rc2 {[%emt 0:00:29]} 34. Ra2 {[%emt 0:00:12]} Rxa2 {[%emt 0:00:14]} 35. Bxa2 {[%emt 0:00:01] KB-KN} Nc5 {[%emt 0:00:01]} 36. Bc4 {[%emt 0:00:01]} Nb7 {[%emt 0:00:18]} 37. Kf2 {[%emt 0:00:05]} Nxa5 {[%emt 0:00:04]} 38. Bxa6 {[%emt 0:00:01]} Nc6 {[%emt 0:00:02]} 39. Ke3 {[%emt 0:00:01]} Kd6 {[%emt 0:00:01]} 40. Bb5 {[%emt 0:00:07] Und jetzt Bxc6 wäre schön.} Ne7 {[%emt 0:00:10]} 41. Kd4 {[%emt 0:00:01]} Ng6 {[%emt 0:00:11]} 42. Be8 {[%emt 0:00:07] Droht Matt per Bxg6.} Nf8 {[%emt 0:00:13]} 43. Bf7 {[%emt 0:00:07]} Ke7 {[%emt 0:00:02]} 44. Bd5 {[%emt 0:00:02]} Nd7 {[%emt 0:00:00]} 45. e5 {[%emt 0:00:02]} fxe5+ {[%emt 0:00:02]} 46. fxe5 {[%emt 0:00:01]} Nf8 {[%emt 0:00:02]} 47. Ke4 {[%emt 0:00:04]} Nd7 {[%emt 0:00:05]} 48. h4 {[%emt 0:00:04]} h6 {[%emt 0:00:05]} 49. Kf5 {[%emt 0:00:02]} Nf8 {[%emt 0:00:01]} 50. h5 {[%emt 0:00:03]} Nd7 {[%emt 0:00:03]} 51. g4 {[%emt 0:00:02]} Nf8 {[%emt 0:00:06]} 52. Bb3 {[%emt 0:00:14]} Ke8 {[%emt 0:00:01]} 53. Bc2 {[%emt 0:00:09]} Ke7 {[%emt 0:00:01]} 54. Bb3 {[%emt 0:00:02]} Ke8 {[%emt 0:00:01]} 55. e6 {[%emt 0:00:03]} (55. Be6 $16) 55... Ke7 $14 {[%emt 0:00:01]} 56. Bd5 {[%emt 0:00:02]} (56. Ba2 $14) 56... Kd6 $16 {[%emt 0:00:03]} 57. Bb3 {[%emt 0:00:03]} Ke7 {[%emt 0:00:00]} 58. Ke5 {[%emt 0:00:02]} Nh7 {[%emt 0:00:01]} 59. Bc2 {[%emt 0:00:02]} (59. Bc4 $16) 59... Nf6 {[%emt 0:00:09]} (59... Ng5 $11 {bleibt in der Remisbreite.}) 60. Bf5 {[%emt 0:00:05]} Ne8 {[%emt 0:00:04]} 61. Bg6 {[%emt 0:00:02]} ({Vorzuziehen ist} 61. Bd3 $16) 61... Nf6 $11 {[%emt 0:00:05]} 62. Kf5 {[%emt 0:00:02]} Nd5 {[%emt 0:00:02]} 63. Bf7 {[%emt 0:00:01]} Kf8 {[%emt 0:00:02]} 64. Bg6 {[%emt 0:00:10]} Ke7 {[%emt 0:00:01]} 65. Ke5 {[%emt 0:00:01]} Nf6 {[%emt 0:00:01]} 66. Bf5 {[%emt 0:00:01]} ({Günstiger ist} 66. Bd3 $11) 66... Ne8 $1 $16 {[%emt 0:00:01]} 67. Bc2 {[%emt 0:00:02]} Nf6 {[%emt 0:00:00]} 68. Kf5 {[%emt 0:00:01]} Nd5 {[%emt 0:00:02]} 69. Bd3 {[%emt 0:00:07]} (69. Be4 $16 Nf6 70. Bb1) 69... Nc7 $2 {[%emt 0:00:03][%mdl 8192] [#]} (69... Kd6 $11) 70. Bc4 $2 {[%emt 0:00:01]} (70. Kg6 $1 $18 {[%cal Rg6g7]} Ne8 71. Bb5) 70... Ne8 $2 {[%emt 0:00:01][%mdl 8192]} (70... Kf8 $16) 71. Kg6 $18 {[%emt 0:00:01]} Kf8 {[%emt 0:00:01] [#]} 72. Bb5 $2 {[%emt 0:00:03]} (72. Be2 $1 $18 {ist der präzise Gewinnweg.} Ke7 73. Bb5) 72... Nf6 {[%emt 0:00:02]} 73. g5 {[%emt 0:00:05]} hxg5 {[%emt 0:00:02][%cal Bh6g5,Bg5g4,Bg4g3][%mdl 32]} 74. h6 {[%emt 0:00:01]} ({Besser ist} 74. Kxg5 $16 {Weiss droht h6 und Matt.} Ng8 75. Ba4) 74... Kg8 $2 {[%emt 0:00:06][%mdl 8192]} (74... g4 $14) 75. hxg7 {[%emt 0:00:03] Weiß setzt Matt.} ({Nicht} 75. Kxg5 Nd5 $11) 75... Nd5 {[%emt 0:00:02]} 76. Bc4 {[%emt 0:00:06]} ({Schwächer ist} 76. Kxg5 Kxg7 77. Bd7 Nc7 $11) 76... Ne7+ {[%emt 0:00:01]} 77. Kf6 $1 {[%emt 0:00:01]} ({Minderwertig wäre} 77. Kxg5 Kxg7 78. Bb5 Kf8 $11) 77... g4 {[%emt 0:00:08]} 78. Kxe7 {[%emt 0:00:03]} Kxg7 {[%emt 0:00:00] KB-KP} 79. Kd7 {[%emt 0:00:02]} g3 {[%emt 0:00:01]} 80. Bd5 {[%emt 0:00:01]} Kf6 {[%emt 0:00:01]} 81. e7 {[%emt 0:00:01]} Ke5 {[%emt 0:00:00]} 82. Bg2 {[%emt 0:00:01]} Kf4 {[%emt 0:00:01]} 83. e8=Q {[%emt 0:00:03]} Kf5 {[%emt 0:00:01]} 84. Qe4+ {[%emt 0:00:02]} Kg5 {[%emt 0:00:00]} 85. Qf3 {[%emt 0:00:01]} Kh4 {[%emt 0:00:00]} 86. Qf4+ {[%emt 0:00:02]} Kh5 {[%emt 0:00:01]} 87. Qxg3 {[%emt 0:00:02]} Kh6 {[%emt 0:00:01]} 88. Qg4 {[%emt 0:00:04]} Kh7 {[%emt 0:00:00]} 89. Ke7 {[%emt 0:00:01]} Kh6 {[%emt 0:00:01]} 90. Kf7 {[%emt 0:00:02][%cal Rg4h4]} Kh7 {[%emt 0:00:00]} 91. Qh5# {[%emt 0:00:01] Gewichteter Fehlerwert: Weiß=0.24 (präzise) /Schwarz=0.16 (sehr präzise) .  Verlustzug:     	---       	Schwarz=4     Gewinn verpasst:   	Weiß=1     	---        Fehler:       	Weiß=9     	Schwarz=4     Ungenau:       	---       	Schwarz=1     OK:         	Weiß=18    	Schwarz=27    Bester:       	Weiß=1     	Schwarz=4     Stark:        	---       	Schwarz=1} 1-0

[Event "Indian Blitz Championship 2023"]
[Site "Nashik"]
[Date "2024.03.07"]
[Round "8.9"]
[White "Srihari L R"]
[Black "Vaz, Ethan"]
[Result "0-1"]
[ECO "D03"]
[WhiteElo "2490"]
[BlackElo "2409"]
[Annotator "RC"]
[PlyCount "82"]
[EventDate "2024.03.07"]
[EventType "blitz"]
[EventCountry "IND"]
[SourceTitle "playchess.com"]
[Source "ChessBase"]
[SourceQuality "1"]
[TimeControl "180+2"]

1. d4 {[%emt 0:00:01]} Nf6 {[%emt 0:00:01]} 2. Bg5 {[%emt 0:00:04]} d5 {[%emt 0:00:04]} 3. Nd2 {[%emt 0:00:02]} Nbd7 {[%emt 0:00:10]} 4. Ngf3 {[%emt 0:00:05]} h6 {[%emt 0:00:07]} 5. Bh4 {[%emt 0:00:07]} g6 {[%emt 0:00:18]} 6. e3 {[%emt 0:00:14]} Bg7 {[%emt 0:00:01]} 7. Bd3 {[%emt 0:00:04]} O-O {[%emt 0:00:06]} 8. O-O {[%emt 0:00:02]} c5 {[%emt 0:00:12]} 9. c3 {[%emt 0:00:02]} b6 {[%emt 0:00:02]} 10. Qe2 {[%emt 0:00:05]} Bb7 {[%emt 0:00:05]} 11. e4 {[%emt 0:00:10]} dxe4 {[%emt 0:00:11]} 12. Nxe4 {[%emt 0:00:01]} cxd4 {[%emt 0:00:11]} 13. Nxd4 {[%emt 0:00:03]} Nd5 {[%emt 0:00:27]} 14. Bc2 {[%emt 0:00:43]} Nf4 {[%emt 0:00:25]} 15. Qe3 {[%emt 0:00:18]} g5 {[%emt 0:00:05]} 16. Nxg5 {[%emt 0:00:38]} hxg5 {[%emt 0:00:15]} 17. Bxg5 {[%emt 0:00:02]} Ng6 {[%emt 0:00:14]} 18. Ne6 {[%emt 0:00:26]} fxe6 {[%emt 0:00:13]} 19. Qxe6+ {[%emt 0:00:05]} Rf7 {[%emt 0:00:01]} 20. Bxg6 {[%emt 0:00:02]} Ne5 {[%emt 0:00:04]} 21. Bxf7+ {[%emt 0:00:04]} Nxf7 {[%emt 0:00:01]} 22. Rad1 {[%emt 0:00:08]} Qc7 {[%emt 0:00:11]} 23. Qxe7 {[%emt 0:00:09]} Qc6 {[%emt 0:00:03]} 24. f3 {[%emt 0:00:01]} Re8 {[%emt 0:00:03]} 25. Qd7 {[%emt 0:00:11]} Nxg5 {[%emt 0:00:02]} 26. Qxc6 {[%emt 0:00:01]} Bxc6 {[%emt 0:00:01]} 27. Rd6 {[%emt 0:00:03]} Re6 {[%emt 0:00:10]} 28. Rfd1 {[%emt 0:00:02]} Bf8 {[%emt 0:00:01]} 29. Rxe6 {[%emt 0:00:03]} Nxe6 {[%emt 0:00:01]} 30. h4 {[%emt 0:00:02]} Kf7 {[%emt 0:00:05]} 31. b4 {[%emt 0:00:01]} Nf4 {[%emt 0:00:04]} 32. Kf2 {[%emt 0:00:02]} Nd5 {[%emt 0:00:02]} 33. b5 {[%emt 0:00:04]} Nxc3 {[%emt 0:00:01]} 34. Rc1 {[%emt 0:00:05]} Bc5+ {[%emt 0:00:01]} 35. Kf1 {[%emt 0:00:00]} Bxb5+ {[%emt 0:00:02]} 36. Ke1 {[%emt 0:00:00]} Nxa2 {[%emt 0:00:02]} 37. Ra1 {[%emt 0:00:01]} Bc4 {[%emt 0:00:03]} 38. g4 {[%emt 0:00:02]} b5 {[%emt 0:00:02]} 39. Kd2 {[%emt 0:00:03]} b4 {[%emt 0:00:03]} 40. Re1 {[%emt 0:00:03]} b3 {[%emt 0:00:01]} 41. Re5 {[%emt 0:00:01]} Bb4+ {[%emt 0:00:01]} 0-1

[Event "Indian Blitz Championship 2023"]
[Site "Nashik"]
[Date "2024.03.07"]
[Round "8.10"]
[White "Sengupta, Deep"]
[Black "Abhishek, Kelkar"]
[Result "1-0"]
[ECO "A11"]
[WhiteElo "2500"]
[BlackElo "2182"]
[Annotator "RC"]
[PlyCount "85"]
[EventDate "2024.03.07"]
[EventType "blitz"]
[EventCountry "IND"]
[SourceTitle "playchess.com"]
[Source "ChessBase"]
[SourceQuality "1"]
[TimeControl "180+2"]

1. Nf3 {[%emt 0:00:01]} d5 {[%emt 0:00:02]} 2. e3 {[%emt 0:00:02]} Nf6 {[%emt 0:00:03]} 3. c4 {[%emt 0:00:02]} c6 {[%emt 0:00:02]} 4. Nc3 {[%emt 0:00:01]} a6 {[%emt 0:00:05]} 5. b3 {[%emt 0:00:33]} Bf5 {[%emt 0:00:02]} 6. Bb2 {[%emt 0:00:01]} e6 {[%emt 0:00:01]} 7. d3 {[%emt 0:00:02]} h6 {[%emt 0:00:03]} 8. Be2 {[%emt 0:00:01]} Be7 {[%emt 0:00:01]} 9. O-O {[%emt 0:00:02]} O-O {[%emt 0:00:02]} 10. Re1 {[%emt 0:00:03]} Bh7 {[%emt 0:00:05]} 11. Bf1 {[%emt 0:00:01]} Nbd7 {[%emt 0:00:01]} 12. a3 {[%emt 0:00:09]} a5 {[%emt 0:00:01]} 13. d4 {[%emt 0:00:09]} Ne4 {[%emt 0:00:11]} 14. Nxe4 {[%emt 0:00:04]} Bxe4 {[%emt 0:00:01]} 15. Nd2 {[%emt 0:00:06]} Bg6 {[%emt 0:00:01]} 16. e4 {[%emt 0:00:02]} Nf6 {[%emt 0:00:16]} 17. e5 {[%emt 0:00:20]} Nd7 {[%emt 0:00:01]} 18. Qf3 {[%emt 0:00:12]} Bg5 {[%emt 0:00:25]} 19. Qc3 {[%emt 0:00:12]} Qb6 {[%emt 0:00:29]} 20. Nf3 {[%emt 0:00:04]} Be7 {[%emt 0:00:01]} 21. c5 {[%emt 0:00:04]} Qc7 {[%emt 0:00:01]} 22. b4 {[%emt 0:00:01]} b6 {[%emt 0:00:08]} 23. Bd3 {[%emt 0:00:22]} Bxd3 {[%emt 0:00:21]} 24. Qxd3 {[%emt 0:00:01]} bxc5 {[%emt 0:00:01]} 25. bxc5 {[%emt 0:00:02]} Rfb8 {[%emt 0:00:01]} 26. Rab1 {[%emt 0:00:28]} Nf8 {[%emt 0:00:02]} 27. Bc3 {[%emt 0:00:03]} Ng6 {[%emt 0:00:04]} 28. g3 {[%emt 0:00:02]} a4 {[%emt 0:00:07]} 29. h4 {[%emt 0:00:03]} f5 {[%emt 0:00:13]} 30. exf6 {[%emt 0:00:06]} Bxf6 {[%emt 0:00:02]} 31. Qxg6 {[%emt 0:00:03]} Rb3 {[%emt 0:00:34]} 32. Rxb3 {[%emt 0:00:13]} axb3 {[%emt 0:00:01]} 33. Rb1 {[%emt 0:00:01]} Rxa3 {[%emt 0:00:04]} 34. Qe8+ {[%emt 0:00:03]} Kh7 {[%emt 0:00:01]} 35. Qxe6 {[%emt 0:00:02]} b2 {[%emt 0:00:01]} 36. Qf5+ {[%emt 0:00:08]} Kg8 {[%emt 0:00:04]} 37. Bxb2 {[%emt 0:00:07]} Rb3 {[%emt 0:00:01]} 38. Bc1 {[%emt 0:00:03]} Qb7 {[%emt 0:00:04]} 39. Rxb3 {[%emt 0:00:02]} Qxb3 {[%emt 0:00:01]} 40. Be3 {[%emt 0:00:02]} Qd1+ {[%emt 0:00:05]} 41. Kg2 {[%emt 0:00:00]} Qe2 {[%emt 0:00:01]} 42. Qe6+ {[%emt 0:00:02]} Kh7 {[%emt 0:00:01]} 43. Qxc6 {[%emt 0:00:02]} 1-0